bitfinex/quotes_SOLUSD_20230102
["timestamp","ask_amount","ask_price","bid_price","bid_amount"]
[1672618613712,30.0,9.9304,9.9208,20.0]
[1672618613921,80.12470002,9.9303,9.9208,20.0]
[1672618614457,30.0,9.9302,9.9208,20.0]
[1672618614648,30.0,9.93,9.9208,20.0]
[1672618614862,80.13470002,9.9299,9.9201,20.0]
[1672618615084,30.0,9.9298,9.9201,20.0]
[1672618615288,30.0,9.9298,9.9203,30.0]
[1672618615289,30.0,9.9296,9.9203,30.0]
[1672618615492,80.13470002,9.9295,9.9203,30.0]
[1672618615697,30.0,9.9294,9.9204,35.80730786]
[1672618615913,80.13470002,9.9293,9.9205,30.0]
[1672618616127,4.48470002,9.9293,9.9206,14.3]
[1672618616353,4.48470002,9.9293,9.9207,20.0]
[1672618616759,75.65,9.9292,9.9208,30.0]
[1672618616962,4.48470002,9.9291,9.9208,45.80730786]
[1672618617173,4.48470002,9.9291,9.921,30.0]
[1672618617386,4.48470002,9.9291,9.9211,20.0]
[1672618617821,75.65,9.929,9.9204,20.0]
[1672618618022,4.48470002,9.9289,9.9204,20.0]
[1672618618235,75.65,9.9288,9.9205,30.0]
[1672618618432,4.48470002,9.9287,9.9206,34.6]
[1672618618760,4.48470002,9.9287,9.9207,30.0]
[1672618618973,4.48470002,9.9287,9.9209,30.0]
[1672618619192,4.48470002,9.9287,9.9211,30.0]
[1672618619379,4.48470002,9.9287,9.9212,34.6]
[1672618619590,4.48470002,9.9287,9.9213,30.0]
[1672618619800,4.48470002,9.9287,9.9215,30.0]
[1672618620032,4.48470002,9.9287,9.9217,30.0]
[1672618620337,4.48470002,9.9287,9.9219,30.0]
[1672618620553,4.48470002,9.9287,9.922,39.63]
[1672618620775,4.48470002,9.9287,9.9221,30.0]
[1672618620977,4.48470002,9.9287,9.9223,30.0]
[1672618621179,4.48470002,9.9287,9.9225,30.0]
[1672618621384,4.48470002,9.9287,9.9226,19.63]
[1672618622014,4.48470002,9.9287,9.9225,30.0]
[1672618622864,4.48470002,9.9287,9.9226,15.80730786]
[1672618623187,4.48470002,9.9287,9.9227,30.0]
[1672618623399,4.48470002,9.9287,9.9228,19.63]
[1672618623615,4.48470002,9.9287,9.9229,30.0]
[1672618623822,4.48470002,9.9287,9.9229,45.80730786]
[1672618624129,4.48470002,9.9287,9.923,15.80730786]
[1672618624346,4.48470002,9.9287,9.9231,30.0]
[1672618624557,4.48470002,9.9287,9.9233,30.0]
[1672618624761,4.48470002,9.9287,9.9235,30.0]
[1672618624972,4.48470002,9.9287,9.9236,19.63]
[1672618625183,4.48470002,9.9287,9.9237,30.0]
[1672618625381,75.59,9.9375,9.9266,74.66177315]
[1672618625585,30.0,9.9421,9.93,5.76]
[1672618625802,30.0,9.9419,9.9302,30.0]
[1672618626006,75.55,9.9418,9.9303,19.62]
[1672618626217,75.55,9.9418,9.9304,50.0]
[1672618626428,30.0,9.9416,9.9305,23.58]
[1672618626639,232.1145,9.9415,9.9305,126.09552258]
[1672618626853,30.0,9.9414,9.9306,20.0]
[1672618627067,75.56,9.9413,9.9306,20.0]
[1672618627279,30.0,9.9412,9.9306,20.0]
[1672618627493,5.72,9.94,9.9306,20.0]
[1672618627707,75.57,9.9399,9.9306,20.0]
[1672618627919,30.0,9.9398,9.9306,20.0]
[1672618628119,75.57,9.9397,9.9306,20.0]
[1672618628333,30.0,9.9396,9.9306,20.0]
[1672618628539,75.57,9.9395,9.9306,20.0]
[1672618628739,30.0,9.9394,9.93,5.76]
[1672618628950,30.0,9.9394,9.9206,30.0]
[1672618628951,30.0,9.9392,9.9206,30.0]
[1672618629165,30.0,9.939,9.9238,9.014]
[1672618629370,95.58,9.9389,9.924,72.43739051]
[1672618629591,30.0,9.9388,9.9241,30.0]
[1672618629810,30.0,9.9386,9.9241,30.0]
[1672618630006,30.0,9.9383,9.9241,30.0]
[1672618630227,299.6,9.9381,9.9241,30.0]
[1672618630441,30.0,9.9379,9.9241,30.0]
[1672618630631,75.59,9.9378,9.9241,30.0]
[1672618630846,50.0,9.9377,9.9241,30.0]
[1672618631056,30.0,9.9375,9.9241,30.0]
[1672618631270,75.59,9.9374,9.9242,9.015]
[1672618631477,30.0,9.9373,9.9242,9.015]
[1672618631687,75.59,9.9372,9.9242,9.015]
[1672618631936,30.0,9.9371,9.9243,30.0]
[1672618632117,30.0,9.9369,9.9243,30.0]
[1672618632339,75.59,9.9368,9.9243,30.0]
[1672618632549,30.0,9.9367,9.9243,30.0]
[1672618632761,30.0,9.9365,9.9243,30.0]
[1672618632985,75.6,9.9364,9.9243,30.0]
[1672618633291,30.0,9.9363,9.9243,30.0]
[1672618633504,75.6,9.9362,9.9243,30.0]
[1672618633903,30.0,9.9361,9.9243,30.0]
[1672618634117,30.0,9.9359,9.9243,30.0]
[1672618634332,30.0,9.9357,9.9243,30.0]
[1672618634648,75.6,9.9356,9.9243,30.0]
[1672618634853,30.0,9.9355,9.9243,30.0]
[1672618635068,30.0,9.9353,9.9243,30.0]
[1672618635276,30.0,9.9351,9.9243,30.0]
[1672618635497,75.61,9.935,9.9243,30.0]
[1672618635699,30.0,9.9349,9.9243,30.0]
[1672618635916,30.0,9.9347,9.9243,30.0]
[1672618636116,75.61,9.9346,9.9243,30.0]
[1672618636541,30.0,9.9345,9.9244,20.48]
[1672618636863,75.61,9.9344,9.9244,20.48]
[1672618637074,75.61,9.9344,9.9243,30.0]
[1672618637287,157.7418,9.9343,9.9243,30.0]
[1672618637475,30.0,9.9341,9.9243,30.0]
[1672618637686,75.61,9.934,9.9243,30.0]
[1672618637899,30.0,9.9339,9.9243,30.0]
[1672618638120,30.0,9.9337,9.9243,30.0]
[1672618638324,75.62,9.9336,9.9242,20.48]
[1672618638538,75.62,9.9336,9.9241,30.0]
[1672618638539,30.0,9.9335,9.9241,30.0]
[1672618638743,30.0,9.9335,9.9232,28.22]
[1672618638744,30.0,9.9333,9.9232,28.22]
[1672618638963,75.62,9.9332,9.9232,28.22]
[1672618639281,30.0,9.9331,9.9232,28.22]
[1672618639495,30.0,9.9329,9.923,28.2]
[1672618639805,30.0,9.9327,9.923,28.2]
[1672618639997,75.62,9.9326,9.923,28.2]
[1672618640203,30.0,9.9325,9.923,28.2]
[1672618640420,75.63,9.9324,9.9229,30.0]
[1672618640755,30.0,9.9323,9.9229,30.0]
[1672618640950,75.63,9.9322,9.9196,74.66177315]
[1672618641156,30.0,9.9321,9.9209,20.0]
[1672618641482,30.0,9.9319,9.9209,20.0]
[1672618641686,30.0,9.9317,9.9203,45.61]
[1672618641911,234.8522,9.9316,9.9203,20.0]
[1672618642112,30.0,9.9315,9.9203,20.0]
[1672618642329,30.0,9.9313,9.9203,20.0]
[1672618642523,75.64,9.9312,9.9203,20.0]
[1672618642734,30.0,9.9311,9.9202,20.0]
[1672618642939,30.0,9.9309,9.9202,20.0]
[1672618643171,75.64,9.9308,9.9203,30.0]
[1672618643385,30.0,9.9307,9.9204,20.0]
[1672618643598,30.0,9.9305,9.9204,20.0]
[1672618643810,75.64,9.9304,9.9205,25.23]
[1672618644018,30.0,9.9303,9.9204,20.0]
[1672618644230,75.64,9.9302,9.9204,20.0]
[1672618644446,30.0,9.9301,9.9205,30.0]
[1672618644639,75.64,9.93,9.9206,20.0]
[1672618644844,30.0,9.9302,9.9206,35.80730786]
[1672618645075,75.64,9.9301,9.9207,15.80730786]
[1672618645282,30.0,9.93,9.9208,20.0]
[1672618645487,30.0,9.9298,9.9208,20.0]
[1672618645707,75.65,9.9297,9.9208,20.0]
[1672618645899,30.0,9.9296,9.9208,20.0]
[1672618646116,30.0,9.9294,9.9208,20.0]
[1672618646442,75.65,9.9293,9.9208,20.0]
[1672618646970,75.64,9.9312,9.921,30.0]
[1672618647178,75.63,9.9313,9.921,30.0]
[1672618647496,75.63,9.9313,9.9212,30.0]
[1672618647701,30.0,9.9313,9.9213,20.0]
[1672618648018,30.0,9.9313,9.9214,45.80730786]
[1672618648212,30.0,9.9329,9.9214,118.24469837]
[1672618648423,30.0,9.9303,9.9215,107.24469837]
[1672618648627,75.64,9.9302,9.9215,72.43739051]
[1672618648858,30.0,9.9301,9.9215,72.43739051]
[1672618649172,30.0,9.9299,9.9215,72.43739051]
[1672618649371,75.65,9.9298,9.9215,72.43739051]
[1672618649577,30.0,9.9302,9.9216,30.0]
[1672618649899,30.0,9.93,9.9216,30.0]
[1672618650223,30.0,9.9298,9.9216,30.0]
[1672618650433,75.62,9.9334,9.9218,30.0]
[1672618650659,30.0,9.9353,9.922,30.0]
[1672618650959,30.0,9.9351,9.9222,30.0]
[1672618651161,75.61,9.935,9.9224,30.0]
[1672618651373,30.0,9.9349,9.9225,26.43]
[1672618651576,30.0,9.9347,9.9226,30.0]
[1672618651908,30.0,9.9345,9.9228,30.0]
[1672618652111,30.0,9.9343,9.923,30.0]
[1672618652315,75.61,9.9342,9.9232,30.0]
[1672618652526,30.0,9.9341,9.9233,27.78]
[1672618652745,75.61,9.934,9.9234,30.0]
[1672618652941,75.61,9.934,9.9236,30.0]
[1672618653151,30.0,9.9339,9.9236,30.0]
[1672618653362,75.62,9.9338,9.9236,30.0]
[1672618653578,30.0,9.9337,9.9236,30.0]
[1672618653784,30.0,9.9335,9.9236,30.0]
[1672618654000,75.62,9.9334,9.9236,30.0]
[1672618654197,30.0,9.9333,9.9236,30.0]
[1672618654425,75.62,9.9332,9.9236,30.0]
[1672618655161,75.62,9.9332,9.9237,15.80730786]
[1672618655361,75.62,9.9332,9.9238,30.0]
[1672618656115,75.62,9.9332,9.924,30.0]
[1672618656297,75.62,9.9338,9.9242,30.0]
[1672618656507,30.0,9.9337,9.9244,30.0]
[1672618656717,75.62,9.9336,9.9245,34.57]
[1672618656939,75.62,9.9336,9.9246,30.0]
[1672618657148,30.0,9.9335,9.9246,30.0]
[1672618657451,75.62,9.9334,9.9247,15.80730786]
[1672618657667,75.62,9.9334,9.9248,30.0]
[1672618661152,30.0,9.9333,9.9248,30.0]
[1672618661345,75.62,9.9332,9.9248,30.0]
[1672618665353,75.62,9.9332,9.9245,34.57]
[1672618666501,30.0,9.9331,9.9245,34.57]
[1672618666708,75.62,9.933,9.9246,30.0]
[1672618667548,75.62,9.933,9.9245,34.57]
[1672618668706,75.62,9.933,9.9246,30.0]
[1672618671437,30.0,9.9313,9.9245,34.57]
[1672618672070,75.62,9.9328,9.9245,34.57]
[1672618673547,75.62,9.9328,9.9246,30.0]
[1672618676372,75.62,9.9328,9.9245,34.57]
[1672618677228,30.0,9.9313,9.9245,34.57]
[1672618679758,75.63,9.9324,9.9245,34.57]
[1672618679945,30.0,9.9313,9.9245,34.57]
[1672618682586,75.63,9.9324,9.9245,34.57]
[1672618683124,30.0,9.9325,9.9245,34.57]
[1672618688994,75.63,9.9324,9.9245,34.57]
[1672618691196,75.63,9.9324,9.9246,15.80730786]
[1672618691415,616.21380446,9.9488,9.9247,30.0]
[1672618691416,75.62,9.9338,9.9247,30.0]
[1672618691629,30.0,9.9345,9.9247,146.63017038]
[1672618691848,75.61,9.9344,9.9248,80.70119669]
[1672618692045,30.0,9.9343,9.9249,30.0]
[1672618692257,75.61,9.9342,9.9249,97.54358941]
[1672618692465,30.0,9.9343,9.925,67.54358941]
[1672618692886,30.0,9.9343,9.9252,30.0]
[1672618693311,30.0,9.9343,9.9254,30.0]
[1672618693634,30.0,9.9341,9.9255,15.80730786]
[1672618693948,30.0,9.9341,9.9256,30.0]
[1672618694371,30.0,9.9341,9.9257,15.80730786]
[1672618694676,30.0,9.9341,9.9258,30.0]
[1672618694873,30.0,9.9341,9.9257,15.80730786]
[1672618695087,30.0,9.9341,9.9259,15.80730786]
[1672618695303,75.61,9.934,9.9259,15.80730786]
[1672618695522,30.0,9.9339,9.9252,30.0]
[1672618695744,30.0,9.9337,9.9251,51.73628155]
[1672618695955,75.62,9.9336,9.9251,51.73628155]
[1672618696364,30.0,9.9335,9.9252,30.0]
[1672618696576,75.62,9.9334,9.9252,30.0]
[1672618698986,30.0,9.9313,9.9251,51.73628155]
[1672618699306,30.0,9.9333,9.9251,51.73628155]
[1672618699522,75.62,9.9332,9.9251,51.73628155]
[1672618699940,75.62,9.9332,9.9252,30.0]
[1672618705815,30.0,9.9313,9.9251,51.73628155]
[1672618706021,75.62,9.9332,9.9251,51.73628155]
[1672618706241,30.0,9.9313,9.9251,51.73628155]
[1672618707529,30.0,9.9313,9.9249,64.89388883]
[1672618709509,75.63,9.9324,9.9249,64.89388883]
[1672618709730,30.0,9.9313,9.9249,64.89388883]
[1672618709941,75.63,9.9324,9.9239,51.73628155]
[1672618710350,75.63,9.9324,9.9246,30.0]
[1672618710584,23.5505,9.9303,9.9246,94.89388883]
[1672618711416,23.5505,9.9303,9.9248,30.0]
[1672618711828,23.5505,9.9303,9.9248,94.89388883]
[1672618712787,23.5505,9.9303,9.9248,64.89388883]
[1672618713401,23.5505,9.9303,9.924,30.0]
[1672618714659,23.5505,9.9303,9.924,94.89388883]
[1672618715084,23.5505,9.9303,9.9242,30.0]
[1672618715504,23.5505,9.9303,9.9244,30.0]
[1672618716044,23.5505,9.9303,9.9244,94.89388883]
[1672618716234,23.5505,9.9303,9.9245,96.15358941]
[1672618716447,23.5505,9.9303,9.9246,30.0]
[1672618716658,23.5505,9.9303,9.9248,30.0]
[1672618716863,23.5505,9.9303,9.9249,30.73]
[1672618717086,23.5505,9.9303,9.925,30.0]
[1672618717301,23.5505,9.9303,9.925,104.51671444]
[1672618717513,23.5505,9.9303,9.925,120.3240223]
[1672618717722,23.5505,9.9303,9.9252,30.0]
[1672618718262,23.5505,9.9303,9.9254,30.0]
[1672618718663,23.5505,9.9303,9.9255,74.51671444]
[1672618718873,23.5505,9.9303,9.9256,30.0]
[1672618719316,23.5505,9.9303,9.9258,30.0]
[1672618719722,23.5505,9.9303,9.926,30.0]
[1672618720147,23.5505,9.9303,9.9262,30.0]
[1672618720471,23.5505,9.9303,9.9262,104.51671444]
[1672618721514,23.5505,9.9303,9.9262,74.51671444]
[1672618721724,23.5505,9.9303,9.9263,30.0]
[1672618722681,23.5505,9.9303,9.9262,74.51671444]
[1672618727190,23.5505,9.9303,9.9264,30.0]
[1672618727607,23.5505,9.9303,9.9266,30.0]
[1672618728135,23.5505,9.9303,9.9268,30.0]
[1672618728565,23.5505,9.9303,9.927,30.0]
[1672618728875,23.5505,9.9303,9.9271,74.51671444]
[1672618729068,23.5505,9.9303,9.9272,30.0]
[1672618729532,75.58,9.9381,9.928,74.66177315]
[1672618729719,165.3577,9.9399,9.93,5.77]
[1672618729930,217.5106,9.9398,9.9301,20.0]
[1672618730247,217.5106,9.9398,9.9302,30.0]
[1672618730458,135.8772,9.9397,9.9302,164.08560193]
[1672618730682,75.57,9.9396,9.9303,134.08560193]
[1672618730895,75.57,9.9396,9.9305,30.0]
[1672618731082,24.4569,9.9395,9.9305,30.0]
[1672618731297,75.57,9.9394,9.9306,154.08560193]
[1672618731631,24.4569,9.9395,9.9307,164.08560193]
[1672618731837,30.0,9.9392,9.9309,30.0]
[1672618732046,24.4569,9.9393,9.9309,30.0]
[1672618732261,30.0,9.9392,9.931,94.51671444]
[1672618732468,53.8927,9.9392,9.9311,30.0]
[1672618732683,53.8927,9.9392,9.9311,104.51671444]
[1672618732995,53.8927,9.9392,9.9312,94.51671444]
[1672618733207,23.8927,9.9391,9.9313,30.0]
[1672618733419,23.8927,9.9391,9.9314,20.0]
[1672618733615,23.8927,9.9391,9.9314,94.51671444]
[1672618733821,23.8927,9.939,9.9315,74.51671444]
[1672618734242,23.8927,9.939,9.9316,20.0]
[1672618734653,23.8927,9.939,9.9317,104.51671444]
[1672618734882,23.8927,9.939,9.9318,20.0]
[1672618735104,23.8927,9.9389,9.9318,110.3240223]
[1672618735308,23.8927,9.9389,9.9319,149.89290979]
[1672618735508,23.8927,9.9389,9.9321,30.0]
[1672618735726,23.8927,9.9389,9.9322,20.0]
[1672618735920,23.8927,9.9389,9.9322,169.89290979]
[1672618736134,30.0,9.9388,9.9323,90.3240223]
[1672618736460,23.8927,9.9389,9.9324,110.3240223]
[1672618736668,23.8927,9.9389,9.9324,74.51671444]
[1672618736857,30.0,9.9388,9.9325,20.0]
[1672618738874,54.2604,9.9388,9.9325,74.51671444]
[1672618739514,54.2604,9.9388,9.9326,20.0]
[1672618739929,54.2604,9.9388,9.9326,94.51671444]
[1672618740336,24.2604,9.9388,9.9326,94.51671444]
[1672618743295,30.0,9.9387,9.9326,94.51671444]
[1672618750657,30.0,9.9387,9.9326,20.0]
[1672618750844,30.0,9.9387,9.9299,20.0]
[1672618751176,30.0,9.9387,9.93,11.31]
[1672618751484,30.0,9.9387,9.9301,20.0]
[1672618751692,30.0,9.9387,9.9302,14.41]
[1672618751908,30.0,9.9387,9.9303,20.0]
[1672618752103,30.0,9.9387,9.9304,15.59]
[1672618752315,30.0,9.9387,9.9305,20.0]
[1672618753271,30.0,9.9387,9.9299,20.0]
[1672618753465,30.0,9.9387,9.93,20.18]
[1672618753886,30.0,9.9387,9.9301,20.0]
[1672618754115,105.58,9.9387,9.9302,23.34]
[1672618754321,105.58,9.9387,9.9303,20.0]
[1672618755171,105.58,9.9387,9.9299,20.0]
[1672618755388,105.58,9.9387,9.93,29.99]
[1672618755815,105.58,9.9387,9.9299,35.80730786]
[1672618755816,105.58,9.9387,9.9301,20.0]
[1672618757071,105.58,9.9387,9.9301,35.80730786]
[1672618757276,75.58,9.9387,9.9301,35.80730786]
[1672618757484,24.2604,9.9388,9.9301,35.80730786]
[1672618757698,24.2604,9.9388,9.9302,59.99]
[1672618757910,24.2604,9.9388,9.9303,20.0]
[1672618758129,24.2604,9.9388,9.9304,59.99]
[1672618758345,24.2604,9.9388,9.9305,50.0]
[1672618758558,24.2604,9.9388,9.9305,65.80730786]
[1672618758766,24.2604,9.9388,9.9306,15.80730786]
[1672618758966,24.2604,9.9388,9.9307,20.0]
[1672618759174,24.2604,9.9388,9.9308,30.0]
[1672618759387,24.2604,9.9388,9.9309,20.0]
[1672618759618,24.2604,9.9388,9.9309,35.80730786]
[1672618759799,24.2604,9.9388,9.931,45.80730786]
[1672618760029,24.2604,9.9388,9.9311,20.0]
[1672618760246,24.2604,9.9388,9.9311,35.80730786]
[1672618760441,24.2604,9.9388,9.9312,15.80730786]
[1672618760869,24.2604,9.9388,9.9313,20.0]
[1672618762144,75.58,9.9387,9.9313,20.0]
[1672618762341,24.2604,9.9388,9.9313,20.0]
[1672618762543,24.2604,9.9388,9.9314,30.0]
[1672618762870,75.58,9.9387,9.9315,20.0]
[1672618763079,30.0,9.9386,9.9313,20.0]
[1672618763412,30.0,9.9384,9.9313,20.0]
[1672618763590,75.58,9.9383,9.9308,20.0]
[1672618763795,30.0,9.9382,9.9308,20.0]
[1672618764005,30.0,9.938,9.9308,20.0]
[1672618767781,30.0,9.938,9.9308,35.80730786]
[1672618767984,30.0,9.9382,9.9308,35.80730786]
[1672618769674,75.58,9.9385,9.9308,35.80730786]
[1672618770210,30.0,9.9384,9.9308,35.80730786]
[1672618773672,30.0,9.9384,9.9308,20.0]
[1672618773869,75.58,9.9383,9.9308,20.0]
[1672618774081,75.58,9.9383,9.9304,29.99]
[1672618774082,30.0,9.9382,9.9305,20.0]
[1672618774288,30.0,9.938,9.9305,20.0]
[1672618774492,75.58,9.9379,9.9305,20.0]
[1672618774700,75.58,9.9379,9.9304,29.99]
[1672618774910,30.0,9.9377,9.9304,29.99]
[1672618775239,30.0,9.9375,9.921,30.0]
[1672618775452,30.0,9.9373,9.9212,30.0]
[1672618775659,75.59,9.9372,9.9213,26.7]
[1672618775881,30.0,9.9371,9.9214,30.0]
[1672618776190,30.0,9.9369,9.9216,30.0]
[1672618776404,75.59,9.9368,9.9217,47.84]
[1672618776716,30.0,9.9367,9.9218,30.0]
[1672618776936,30.0,9.9365,9.922,30.0]
[1672618777116,75.6,9.9364,9.9221,47.01]
[1672618777323,30.0,9.9363,9.9222,30.0]
[1672618777537,75.6,9.9362,9.9223,47.12]
[1672618777748,30.0,9.9361,9.9224,30.0]
[1672618777962,30.0,9.9359,9.9226,30.0]
[1672618778173,30.0,9.9357,9.9228,30.0]
[1672618778388,75.6,9.9356,9.9229,26.62]
[1672618778601,30.0,9.9355,9.923,30.0]
[1672618778814,30.0,9.9353,9.9232,30.0]
[1672618779013,30.0,9.9351,9.9234,30.0]
[1672618779223,75.61,9.935,9.9235,27.23]
[1672618779429,30.0,9.9349,9.9235,92.03836849]
[1672618779645,75.61,9.9348,9.9237,30.0]
[1672618779854,30.0,9.9347,9.9238,27.87]
[1672618780075,75.61,9.9346,9.9239,30.0]
[1672618780287,30.0,9.9345,9.924,27.13]
[1672618780479,30.0,9.9343,9.924,42.93730786]
[1672618780691,30.0,9.9341,9.924,107.74567635]
[1672618780913,30.0,9.9341,9.9241,80.61567635]
[1672618780914,75.61,9.934,9.9241,80.61567635]
[1672618781124,30.0,9.9339,9.9242,26.92]
[1672618781336,30.0,9.9337,9.9243,30.0]
[1672618781536,30.0,9.9335,9.9244,25.2]
[1672618781745,30.0,9.9333,9.9244,41.00730786]
[1672618781964,75.62,9.9332,9.9245,15.80730786]
[1672618782185,30.0,9.9331,9.9246,24.62]
[1672618782605,30.0,9.9331,9.9247,15.80730786]
[1672618782815,243.6914,9.933,9.9247,15.80730786]
[1672618783454,30.0,9.9328,9.9247,15.80730786]
[1672618783676,105.62,9.9328,9.9247,15.80730786]
[1672618784071,23.3367,9.9327,9.9247,15.80730786]
[1672618784277,75.62,9.9326,9.9248,30.0]
[1672618784507,30.0,9.9325,9.9247,15.80730786]
[1672618784726,53.3367,9.9325,9.9249,15.80730786]
[1672618785036,23.3367,9.9325,9.9249,15.80730786]
[1672618785245,23.3367,9.9324,9.9249,15.80730786]
[1672618785979,23.3367,9.9323,9.9249,15.80730786]
[1672618786400,188.3817,9.9327,9.9249,15.80730786]
[1672618786401,23.3367,9.9322,9.9249,15.80730786]
[1672618787328,23.4351,9.9321,9.9249,15.80730786]
[1672618787965,23.4351,9.932,9.9249,15.80730786]
[1672618788269,23.4351,9.932,9.9183,24.2081]
[1672618788270,5.76,9.93,9.921,24.349]
[1672618788483,75.65,9.9299,9.9217,15.80730786]
[1672618788805,30.0,9.9298,9.9224,20.0]
[1672618789014,75.65,9.9297,9.9218,20.0]
[1672618789228,30.0,9.9296,9.9218,20.0]
[1672618789436,75.65,9.9295,9.9218,20.0]
[1672618789660,30.0,9.9294,9.9218,20.0]
[1672618789850,30.0,9.9292,9.9217,15.80730786]
[1672618790067,75.65,9.9291,9.9219,15.80730786]
[1672618790271,75.65,9.9295,9.9221,30.0]
[1672618790488,75.65,9.9298,9.9221,30.0]
[1672618790709,75.65,9.9298,9.9222,100.61567635]
[1672618790901,75.65,9.9298,9.9222,80.61567635]
[1672618791111,75.65,9.9298,9.9224,30.0]
[1672618791329,75.65,9.9298,9.9225,20.0]
[1672618791652,75.65,9.9298,9.9226,80.61567635]
[1672618791863,75.65,9.9298,9.9227,20.0]
[1672618792300,30.0,9.9297,9.9227,20.0]
[1672618792516,75.65,9.9296,9.9227,20.0]
[1672618792927,30.0,9.9295,9.9216,20.0]
[1672618793135,75.65,9.9294,9.9228,15.80730786]
[1672618793345,30.0,9.9293,9.9228,15.80730786]
[1672618793671,75.65,9.9292,9.9228,15.80730786]
[1672618793985,30.0,9.9291,9.9228,15.80730786]
[1672618794199,75.65,9.929,9.9228,15.80730786]
[1672618794394,30.0,9.9289,9.9228,15.80730786]
[1672618794605,30.0,9.9287,9.9228,15.80730786]
[1672618794936,30.0,9.9285,9.9228,15.80730786]
[1672618795462,75.66,9.9286,9.9228,15.80730786]
[1672618795673,30.0,9.9285,9.9228,15.80730786]
[1672618796619,75.66,9.9286,9.9228,15.80730786]
[1672618797142,75.65,9.9288,9.9228,15.80730786]
[1672618797345,30.0,9.9287,9.9228,15.80730786]
[1672618797539,30.0,9.9285,9.9228,15.80730786]
[1672618797746,75.66,9.9286,9.9228,15.80730786]
[1672618798276,30.0,9.9285,9.9228,15.80730786]
[1672618798493,75.66,9.9286,9.9228,15.80730786]
[1672618798810,30.0,9.9289,9.9228,15.80730786]
[1672618799437,75.65,9.9288,9.92,0.14244428]
[1672618799656,161.0297,9.9288,9.92,0.14244428]
[1672618799858,60.97867069,9.9196,9.9162,15.80730786]
[1672618800179,60.97867069,9.9196,9.9192,15.80730786]
[1672618800388,24.28376283,9.9196,9.9193,20.0]
[1672618800600,10.09916283,9.9196,9.9194,6.238]
[1672618800821,10.09916283,9.9196,9.9195,20.0]
[1672618801228,0.00916283,9.9196,9.9195,20.0]
[1672618801438,0.00916283,9.9196,9.9195,35.80730786]
[1672618801759,75.66,9.9279,9.9196,30.0]
[1672618801953,48.2587,9.9286,9.9197,6.238]
[1672618802170,75.66,9.9285,9.9197,22.04530786]
[1672618802379,48.2587,9.9286,9.9199,30.0]
[1672618802798,75.66,9.9285,9.92,35.80730786]
[1672618803007,75.66,9.9285,9.9201,30.0]
[1672618803218,75.66,9.9285,9.9202,20.0]
[1672618803436,75.66,9.9285,9.9202,35.80730786]
[1672618803863,30.0,9.9284,9.9202,20.0]
[1672618804071,75.66,9.9283,9.9202,20.0]
[1672618804289,75.66,9.9283,9.92,20.0]
[1672618804480,75.66,9.9285,9.92,33.85]
[1672618804714,30.0,9.9284,9.92,20.0]
[1672618804919,75.66,9.9283,9.92,20.0]
[1672618805251,75.66,9.9283,9.9201,30.0]
[1672618805441,75.66,9.9285,9.9201,30.0]
[1672618805648,75.66,9.9285,9.9202,20.0]
[1672618805861,30.0,9.9284,9.9202,20.0]
[1672618806092,75.66,9.9283,9.9204,30.0]
[1672618806303,30.0,9.9282,9.9205,20.0]
[1672618806517,75.66,9.9281,9.9205,35.80730786]
[1672618806705,75.66,9.9281,9.9206,15.80730786]
[1672618806917,75.66,9.9281,9.9207,20.0]
[1672618807242,75.66,9.9281,9.9208,15.80730786]
[1672618807436,48.2587,9.9286,9.9208,15.80730786]
[1672618807437,75.66,9.9285,9.9209,30.0]
[1672618807649,48.2587,9.9286,9.9209,30.0]
[1672618807876,48.2587,9.9286,9.921,20.0]
[1672618808075,75.66,9.9285,9.9207,20.0]
[1672618808494,75.66,9.9285,9.92,30.0]
[1672618808719,75.66,9.9285,9.9201,20.0]
[1672618808927,75.66,9.9285,9.9202,30.0]
[1672618809341,30.0,9.9284,9.9203,20.0]
[1672618809562,75.66,9.9283,9.9203,20.0]
[1672618809972,30.0,9.9282,9.9203,20.0]
[1672618810285,75.66,9.9281,9.9203,20.0]
[1672618810485,30.0,9.928,9.9203,20.0]
[1672618810698,75.66,9.9279,9.9203,20.0]
[1672618810909,30.0,9.9284,9.9199,20.0]